[Event "January 9 Early 2024"]
[Site "https://www.chess.com"]
[Date "2024.01.11"]
[Round "2"]
[White "Ambartsumova, Karina"]
[Black "Matlakov, Maxim"]
[Result "0-1"]
[Board "221"]
[TimeControl "180+1"]
[WhiteFideId "4166299"]
[BlackFideId "4168003"]
[WhiteElo "2620"]
[BlackElo "2944"]
[WhiteTeam "RUS"]
[BlackTeam "RUS"]
[WhiteClock "0:00:04"]
[BlackClock "0:00:16"]

1. d4 {[%clk 0:03:00]}  Nf6 {[%clk 0:02:59]} 2. c4 {[%clk 0:03:00]}  e6 {[%clk 0:02:59]} 3. Nc3 {[%clk 0:02:58]}  d5 {[%clk 0:02:56]} 4. cxd5 {[%clk 0:02:57]}  exd5 {[%clk 0:02:57]} 5. Bg5 {[%clk 0:02:57]}  c6 {[%clk 0:02:54]} 6. e3 {[%clk 0:02:57]}  Bd6 {[%clk 0:02:54]} 7. Bd3 {[%clk 0:02:57]}  O-O {[%clk 0:02:54]} 8. Nf3 {[%clk 0:02:57]}  Re8 {[%clk 0:02:54]} 9. Qc2 {[%clk 0:02:57]}  h6 {[%clk 0:02:54]} 10. Bh4 {[%clk 0:02:57]}  a5 {[%clk 0:02:54]} 11. O-O {[%clk 0:02:47]}  Na6 {[%clk 0:02:52]} 12. a3 {[%clk 0:02:45]}  Nc7 {[%clk 0:02:52]} 13. Rae1 {[%clk 0:02:36]}  Bg4 {[%clk 0:02:51]} 14. Nd2 {[%clk 0:02:33]}  Rc8 {[%clk 0:02:13]} 15. f3 {[%clk 0:02:26]}  Be6 {[%clk 0:02:11]} 16. Bf2 {[%clk 0:01:37]}  b5 {[%clk 0:02:08]} 17. e4 {[%clk 0:01:34]}  dxe4 {[%clk 0:02:07]} 18. fxe4 {[%clk 0:01:35]}  Ng4 {[%clk 0:02:06]} 19. e5 {[%clk 0:01:22]}  Bf8 {[%clk 0:01:59]} 20. Nf3 {[%clk 0:01:18]}  Nxf2 {[%clk 0:01:46]} 21. Qxf2 {[%clk 0:01:15]}  c5 {[%clk 0:01:42]} 22. Nxb5 {[%clk 0:00:54]}  Nd5 {[%clk 0:01:28]} 23. Rd1 {[%clk 0:00:28]}  Qb6 {[%clk 0:01:27]} 24. Nd6 {[%clk 0:00:25]}  Bxd6 {[%clk 0:01:27]} 25. exd6 {[%clk 0:00:26]}  c4 {[%clk 0:01:27]} 26. Bb1 {[%clk 0:00:24]}  Qxd6 {[%clk 0:01:24]} 27. Ne5 {[%clk 0:00:24]}  Rf8 {[%clk 0:01:01]} 28. Qc2 {[%clk 0:00:22]}  f5 {[%clk 0:01:01]} 29. Qf2 {[%clk 0:00:18]}  c3 {[%clk 0:01:00]} 30. bxc3 {[%clk 0:00:17]}  Rxc3 {[%clk 0:01:01]} 31. a4 {[%clk 0:00:16]}  Ne3 {[%clk 0:01:00]} 32. Rfe1 {[%clk 0:00:09]}  Nxd1 {[%clk 0:00:58]} 33. Rxd1 {[%clk 0:00:10]}  Rfc8 {[%clk 0:00:47]} 34. Qd2 {[%clk 0:00:09]}  Qd5 {[%clk 0:00:32]} 35. h3 {[%clk 0:00:06]}  R8c7 {[%clk 0:00:31]} 36. Nf3 {[%clk 0:00:05]}  Qd6 {[%clk 0:00:20]} 37. Qf2 {[%clk 0:00:03]}  Bb3 {[%clk 0:00:19]} 38. Re1 {[%clk 0:00:03]}  Bc2 {[%clk 0:00:19]} 39. Qh4 {[%clk 0:00:03]}  Bxb1 {[%clk 0:00:18]} 40. Rxb1 {[%clk 0:00:04]}  Rc1+ {[%clk 0:00:18]} 41. Rxc1 {[%clk 0:00:04]}  Rxc1+ {[%clk 0:00:19]} 42. Ne1 {[%clk 0:00:05]}  Qe6 {[%clk 0:00:16]} 43. Kf1 {[%clk 0:00:05]}  Qe4 {[%clk 0:00:15]} 44. Qxe4 {[%clk 0:00:03]}  fxe4 {[%clk 0:00:16]} 45. Ke2 {[%clk 0:00:04]}  Ra1 {[%clk 0:00:16]} 0-1

[Event "January 9 Early 2024"]
[Site "https://www.chess.com"]
[Date "2024.01.11"]
[Round "2"]
[White "de Lisle, Sarah"]
[Black "Blahynka, Martin"]
[Result "0-1"]
[Board "223"]
[TimeControl "180+1"]
[WhiteFideId "402605"]
[BlackFideId "334766"]
[WhiteElo "1930"]
[BlackElo "2428"]
[WhiteTeam "ENG"]
[BlackTeam "CZE"]
[WhiteClock "0:00:03"]
[BlackClock "0:00:04"]

1. e4 {[%clk 0:03:00]}  g6 {[%clk 0:02:57]} 2. d4 {[%clk 0:02:58]}  Bg7 {[%clk 0:02:58]} 3. Nf3 {[%clk 0:02:55]}  d6 {[%clk 0:02:58]} 4. Nc3 {[%clk 0:02:55]}  a6 {[%clk 0:02:59]} 5. Be2 {[%clk 0:02:54]}  b5 {[%clk 0:02:58]} 6. a3 {[%clk 0:02:49]}  Bb7 {[%clk 0:02:54]} 7. Bf4 {[%clk 0:02:41]}  Nf6 {[%clk 0:02:53]} 8. e5 {[%clk 0:02:32]}  Nd5 {[%clk 0:02:44]} 9. Nxd5 {[%clk 0:02:23]}  Bxd5 {[%clk 0:02:44]} 10. O-O {[%clk 0:02:21]}  O-O {[%clk 0:02:39]} 11. b3 {[%clk 0:02:16]}  Nd7 {[%clk 0:02:15]} 12. c4 {[%clk 0:02:03]}  bxc4 {[%clk 0:02:14]} 13. bxc4 {[%clk 0:02:01]}  dxe5 {[%clk 0:02:14]} 14. Nxe5 {[%clk 0:01:47]}  Nxe5 {[%clk 0:01:50]} 15. cxd5 {[%clk 0:01:24]}  Nd7 {[%clk 0:01:49]} 16. Bf3 {[%clk 0:01:21]}  Ra7 {[%clk 0:01:33]} 17. Qc2 {[%clk 0:01:08]}  Nb6 {[%clk 0:01:32]} 18. Qc5 {[%clk 0:01:03]}  Qd7 {[%clk 0:01:21]} 19. Rfe1 {[%clk 0:00:56]}  Bf6 {[%clk 0:01:21]} 20. Rac1 {[%clk 0:00:51]}  Rb7 {[%clk 0:00:56]} 21. Qc6 {[%clk 0:00:40]}  Qxc6 {[%clk 0:00:51]} 22. dxc6 {[%clk 0:00:38]}  Ra7 {[%clk 0:00:51]} 23. Be5 {[%clk 0:00:30]}  Kg7 {[%clk 0:00:48]} 24. d5 {[%clk 0:00:19]}  Rd8 {[%clk 0:00:44]} 25. Bxf6+ {[%clk 0:00:19]}  Kxf6 {[%clk 0:00:44]} 26. Red1 {[%clk 0:00:17]}  Rd6 {[%clk 0:00:42]} 27. Rc5 {[%clk 0:00:15]}  a5 {[%clk 0:00:20]} 28. Kf1 {[%clk 0:00:15]}  Ra8 {[%clk 0:00:19]} 29. Ke2 {[%clk 0:00:14]}  a4 {[%clk 0:00:19]} 30. Kd3 {[%clk 0:00:13]}  Rad8 {[%clk 0:00:17]} 31. Kc3 {[%clk 0:00:12]}  e6 {[%clk 0:00:15]} 32. Kb4 {[%clk 0:00:10]}  exd5 {[%clk 0:00:14]} 33. Rc2 {[%clk 0:00:08]}  Nc4 {[%clk 0:00:07]} 34. Rd3 {[%clk 0:00:08]}  Rb8+ {[%clk 0:00:07]} 35. Kc3 {[%clk 0:00:07]}  Rb3+ {[%clk 0:00:06]} 36. Kd4 {[%clk 0:00:04]}  Rxd3+ {[%clk 0:00:06]} 37. Kxd3 {[%clk 0:00:04]}  Nxa3 {[%clk 0:00:06]} 38. Rc5 {[%clk 0:00:03]}  Nc4 {[%clk 0:00:04]} 39. Kc3 {[%clk 0:00:03]}  Ne5 {[%clk 0:00:04]} 0-1

[Event "January 9 Early 2024"]
[Site "https://www.chess.com"]
[Date "2024.01.11"]
[Round "2"]
[White "Carnicelli, Valerio"]
[Black "Velikanov, Alexander"]
[Result "1-0"]
[Board "224"]
[TimeControl "180+1"]
[WhiteFideId "856185"]
[BlackFideId "2039290"]
[WhiteElo "2596"]
[BlackElo "2820"]
[WhiteTeam "ITA"]
[BlackTeam "USA"]
[WhiteClock "0:00:07"]
[BlackClock "0:00:02"]

1. b3 {[%clk 0:03:00]}  e6 {[%clk 0:03:00]} 2. Bb2 {[%clk 0:03:01]}  b6 {[%clk 0:03:01]} 3. e3 {[%clk 0:03:01]}  Bb7 {[%clk 0:03:02]} 4. Nf3 {[%clk 0:03:01]}  Nf6 {[%clk 0:03:02]} 5. Be2 {[%clk 0:03:01]}  g6 {[%clk 0:03:02]} 6. O-O {[%clk 0:02:59]}  Bg7 {[%clk 0:03:02]} 7. c4 {[%clk 0:02:59]}  O-O {[%clk 0:03:03]} 8. a3 {[%clk 0:02:59]}  d5 {[%clk 0:02:58]} 9. cxd5 {[%clk 0:02:57]}  exd5 {[%clk 0:02:57]} 10. d3 {[%clk 0:02:56]}  c5 {[%clk 0:02:56]} 11. Nbd2 {[%clk 0:02:55]}  Qe7 {[%clk 0:02:51]} 12. Rc1 {[%clk 0:02:48]}  Nbd7 {[%clk 0:02:49]} 13. Rc2 {[%clk 0:02:47]}  a5 {[%clk 0:02:42]} 14. a4 {[%clk 0:02:40]}  Nb8 {[%clk 0:02:41]} 15. Qa1 {[%clk 0:02:39]}  Nc6 {[%clk 0:02:40]} 16. Rcc1 {[%clk 0:02:34]}  Nb4 {[%clk 0:02:40]} 17. Rfd1 {[%clk 0:02:34]}  Rfe8 {[%clk 0:02:25]} 18. d4 {[%clk 0:02:22]}  Ne4 {[%clk 0:02:12]} 19. Nf1 {[%clk 0:02:21]}  Rac8 {[%clk 0:02:03]} 20. Bb5 {[%clk 0:02:14]}  Red8 {[%clk 0:02:03]} 21. dxc5 {[%clk 0:02:13]}  Bxb2 {[%clk 0:02:03]} 22. Qxb2 {[%clk 0:02:14]}  bxc5 {[%clk 0:02:02]} 23. Ng3 {[%clk 0:02:06]}  Nxg3 {[%clk 0:01:29]} 24. hxg3 {[%clk 0:02:07]}  d4 {[%clk 0:01:25]} 25. exd4 {[%clk 0:01:50]}  Qf6 {[%clk 0:01:17]} 26. Ne5 {[%clk 0:01:24]}  cxd4 {[%clk 0:00:56]} 27. Rxc8 {[%clk 0:01:20]}  Rxc8 {[%clk 0:00:48]} 28. Qxd4 {[%clk 0:01:11]}  Kg7 {[%clk 0:00:37]} 29. Bc4 {[%clk 0:01:04]}  Re8 {[%clk 0:00:31]} 30. Nxf7 {[%clk 0:00:46]}  Re1+ {[%clk 0:00:22]} 31. Kh2 {[%clk 0:00:46]}  Rxd1 {[%clk 0:00:19]} 32. Qxd1 {[%clk 0:00:47]}  Qxf2 {[%clk 0:00:19]} 33. Qa1+ {[%clk 0:00:41]}  Qf6 {[%clk 0:00:13]} 34. Qe5 {[%clk 0:00:22]}  h5 {[%clk 0:00:05]} 35. Qc7 {[%clk 0:00:16]}  Qc6 {[%clk 0:00:06]} 36. Qe5+ {[%clk 0:00:11]}  Qf6 {[%clk 0:00:03]} 37. Qxa5 {[%clk 0:00:11]}  Qf2 {[%clk 0:00:02]} 38. Qe5+ {[%clk 0:00:11]}  Qf6 {[%clk 0:00:02]} 39. Qc7 {[%clk 0:00:07]}  Qc6 {[%clk 0:00:02]} 40. Qxc6 {[%clk 0:00:08]}  Bxc6 {[%clk 0:00:02]} 41. Ne5 {[%clk 0:00:08]}  Bb7 {[%clk 0:00:02]} 42. Nd3 {[%clk 0:00:07]} 1-0

[Event "January 9 Early 2024"]
[Site "https://www.chess.com"]
[Date "2024.01.11"]
[Round "2"]
[White "Poddubnyi, Viktor"]
[Black "Grigorov, Grigor"]
[Result "1-0"]
[Board "225"]
[TimeControl "180+1"]
[WhiteFideId "4141989"]
[BlackFideId "2907313"]
[WhiteElo "2432"]
[BlackElo "2858"]
[WhiteTeam "RUS"]
[BlackTeam "BUL"]
[WhiteClock "0:00:14"]
[BlackClock "0:00:09"]

1. e4 {[%clk 0:03:00]}  c6 {[%clk 0:03:00]} 2. d4 {[%clk 0:02:58]}  d5 {[%clk 0:03:00]} 3. exd5 {[%clk 0:02:57]}  cxd5 {[%clk 0:03:00]} 4. c4 {[%clk 0:02:58]}  Nf6 {[%clk 0:02:59]} 5. Nc3 {[%clk 0:02:58]}  Nc6 {[%clk 0:02:59]} 6. Bg5 {[%clk 0:02:57]}  dxc4 {[%clk 0:02:55]} 7. Bxc4 {[%clk 0:02:56]}  e6 {[%clk 0:02:48]} 8. Nf3 {[%clk 0:02:55]}  Be7 {[%clk 0:02:46]} 9. O-O {[%clk 0:02:55]}  h6 {[%clk 0:02:46]} 10. Be3 {[%clk 0:02:55]}  O-O {[%clk 0:02:38]} 11. Qd2 {[%clk 0:02:51]}  Re8 {[%clk 0:02:28]} 12. Rad1 {[%clk 0:02:48]}  Bf8 {[%clk 0:02:21]} 13. Rfe1 {[%clk 0:02:44]}  a6 {[%clk 0:02:17]} 14. Ne5 {[%clk 0:02:14]}  Ne7 {[%clk 0:02:05]} 15. a4 {[%clk 0:02:08]}  Ned5 {[%clk 0:02:01]} 16. Qe2 {[%clk 0:02:03]}  Bd7 {[%clk 0:01:58]} 17. Qf3 {[%clk 0:01:56]}  Bc6 {[%clk 0:01:57]} 18. Nxc6 {[%clk 0:01:29]}  bxc6 {[%clk 0:01:56]} 19. Ne4 {[%clk 0:01:22]}  Nxe4 {[%clk 0:01:54]} 20. Qxe4 {[%clk 0:01:21]}  a5 {[%clk 0:01:52]} 21. Rc1 {[%clk 0:01:11]}  Rb8 {[%clk 0:01:49]} 22. b3 {[%clk 0:01:09]}  Qf6 {[%clk 0:01:41]} 23. Red1 {[%clk 0:01:04]}  g6 {[%clk 0:01:31]} 24. Bd2 {[%clk 0:00:46]}  Bb4 {[%clk 0:01:25]} 25. Bxh6 {[%clk 0:00:29]}  Nc3 {[%clk 0:01:19]} 26. Rxc3 {[%clk 0:00:22]}  Bxc3 {[%clk 0:01:20]} 27. Rd3 {[%clk 0:00:21]}  Bb2 {[%clk 0:01:07]} 28. Bf4 {[%clk 0:00:20]}  Rbd8 {[%clk 0:00:53]} 29. Be5 {[%clk 0:00:19]}  Qf5 {[%clk 0:00:46]} 30. Rh3 {[%clk 0:00:19]}  Kf8 {[%clk 0:00:20]} 31. Qxf5 {[%clk 0:00:14]}  exf5 {[%clk 0:00:18]} 32. Bf6 {[%clk 0:00:15]}  Re1+ {[%clk 0:00:17]} 33. Bf1 {[%clk 0:00:15]}  Ke8 {[%clk 0:00:12]} 34. Rh8+ {[%clk 0:00:16]}  Kd7 {[%clk 0:00:13]} 35. Rxd8+ {[%clk 0:00:16]}  Kc7 {[%clk 0:00:13]} 36. Rf8 {[%clk 0:00:15]}  Re6 {[%clk 0:00:11]} 37. Be5+ {[%clk 0:00:14]}  Kb6 {[%clk 0:00:11]} 38. Rxf7 {[%clk 0:00:15]}  Ba3 {[%clk 0:00:09]} 39. Rf6 {[%clk 0:00:15]}  Re8 {[%clk 0:00:09]} 40. Rxg6 {[%clk 0:00:15]}  Bb4 {[%clk 0:00:09]} 41. g3 {[%clk 0:00:15]}  Rd8 {[%clk 0:00:09]} 42. Bg2 {[%clk 0:00:15]}  Bc3 {[%clk 0:00:09]} 43. Rxc6+ {[%clk 0:00:14]} 1-0

[Event "January 9 Early 2024"]
[Site "https://www.chess.com"]
[Date "2024.01.11"]
[Round "2"]
[White "Dinu, Dumitru-Daniel"]
[Black "Bazzano, Sebastian"]
[Result "1-0"]
[Board "226"]
[TimeControl "180+1"]
[WhiteFideId "1208403"]
[BlackFideId "104566"]
[WhiteElo "2496"]
[BlackElo "2246"]
[WhiteTeam "ROU"]
[BlackTeam "ARG"]
[WhiteClock "0:00:06"]
[BlackClock "0:00:03"]

1. e4 {[%clk 0:03:00]}  e6 {[%clk 0:02:59]} 2. d4 {[%clk 0:02:59]}  d5 {[%clk 0:03:00]} 3. Nc3 {[%clk 0:02:59]}  dxe4 {[%clk 0:03:00]} 4. Nxe4 {[%clk 0:02:58]}  Bd7 {[%clk 0:03:00]} 5. Nf3 {[%clk 0:02:54]}  Bc6 {[%clk 0:02:59]} 6. Bd3 {[%clk 0:02:52]}  Bxe4 {[%clk 0:02:54]} 7. Bxe4 {[%clk 0:02:51]}  c6 {[%clk 0:02:55]} 8. O-O {[%clk 0:02:49]}  Nf6 {[%clk 0:02:56]} 9. Bd3 {[%clk 0:02:47]}  Bd6 {[%clk 0:02:56]} 10. Re1 {[%clk 0:02:42]}  Nbd7 {[%clk 0:02:56]} 11. c3 {[%clk 0:02:27]}  O-O {[%clk 0:02:54]} 12. Qc2 {[%clk 0:02:17]}  Qc7 {[%clk 0:02:54]} 13. h3 {[%clk 0:02:14]}  Bf4 {[%clk 0:02:53]} 14. Bxf4 {[%clk 0:01:53]}  Qxf4 {[%clk 0:02:54]} 15. Ne5 {[%clk 0:01:54]}  g6 {[%clk 0:02:43]} 16. Re3 {[%clk 0:01:38]}  Nxe5 {[%clk 0:02:28]} 17. dxe5 {[%clk 0:01:35]}  Nd7 {[%clk 0:02:28]} 18. Rae1 {[%clk 0:01:33]}  Rfd8 {[%clk 0:02:26]} 19. Qe2 {[%clk 0:01:06]}  Nf8 {[%clk 0:02:12]} 20. Re4 {[%clk 0:00:48]}  Qg5 {[%clk 0:02:03]} 21. h4 {[%clk 0:00:45]}  Qh6 {[%clk 0:01:31]} 22. Qf3 {[%clk 0:00:31]}  Rd7 {[%clk 0:01:28]} 23. Bc4 {[%clk 0:00:28]}  Rad8 {[%clk 0:01:23]} 24. Rf4 {[%clk 0:00:26]}  Qg7 {[%clk 0:01:14]} 25. g3 {[%clk 0:00:14]}  Rd2 {[%clk 0:01:10]} 26. b4 {[%clk 0:00:14]}  Nd7 {[%clk 0:01:00]} 27. Qe3 {[%clk 0:00:08]}  Nb6 {[%clk 0:00:50]} 28. Bb3 {[%clk 0:00:08]}  R2d3 {[%clk 0:00:35]} 29. Qc5 {[%clk 0:00:08]}  Qf8 {[%clk 0:00:35]} 30. Qa5 {[%clk 0:00:08]}  Nd5 {[%clk 0:00:24]} 31. Bxd5 {[%clk 0:00:06]}  R8xd5 {[%clk 0:00:21]} 32. Qxa7 {[%clk 0:00:07]}  Rxc3 {[%clk 0:00:16]} 33. Qxb7 {[%clk 0:00:07]}  Rd2 {[%clk 0:00:14]} 34. a4 {[%clk 0:00:08]}  Rcc2 {[%clk 0:00:14]} 35. a5 {[%clk 0:00:07]}  Ra2 {[%clk 0:00:08]} 36. a6 {[%clk 0:00:07]}  Ra3 {[%clk 0:00:05]} 37. Qxc6 {[%clk 0:00:07]}  Rda2 {[%clk 0:00:05]} 38. b5 {[%clk 0:00:08]}  Qd8 {[%clk 0:00:03]} 39. Rc1 {[%clk 0:00:06]} 1-0

[Event "January 9 Early 2024"]
[Site "https://www.chess.com"]
[Date "2024.01.11"]
[Round "2"]
[White "Janaszak, Dawid"]
[Black "Ibarra Jerez, Jose Carlos"]
[Result "0-1"]
[Board "227"]
[TimeControl "180+1"]
[WhiteFideId "1119206"]
[BlackFideId "2226332"]
[WhiteElo "2623"]
[BlackElo "2952"]
[WhiteTeam "POL"]
[BlackTeam "ESP"]
[WhiteClock "0:00:05"]
[BlackClock "0:00:08"]

1. e4 {[%clk 0:03:00]}  c5 {[%clk 0:02:54]} 2. Nc3 {[%clk 0:03:00]}  Nc6 {[%clk 0:02:53]} 3. Bb5 {[%clk 0:03:00]}  Nd4 {[%clk 0:02:50]} 4. Nf3 {[%clk 0:03:00]}  e6 {[%clk 0:02:50]} 5. O-O {[%clk 0:03:00]}  a6 {[%clk 0:02:46]} 6. Bd3 {[%clk 0:03:00]}  Nc6 {[%clk 0:02:47]} 7. a3 {[%clk 0:02:56]}  d5 {[%clk 0:02:17]} 8. Re1 {[%clk 0:02:44]}  Be7 {[%clk 0:02:02]} 9. e5 {[%clk 0:02:32]}  g5 {[%clk 0:01:54]} 10. Kh1 {[%clk 0:02:29]}  g4 {[%clk 0:01:51]} 11. Ng1 {[%clk 0:02:29]}  h5 {[%clk 0:01:52]} 12. b4 {[%clk 0:02:25]}  c4 {[%clk 0:01:42]} 13. Bf1 {[%clk 0:02:22]}  d4 {[%clk 0:01:37]} 14. Na4 {[%clk 0:02:11]}  b5 {[%clk 0:01:36]} 15. Nc5 {[%clk 0:02:11]}  Bxc5 {[%clk 0:01:33]} 16. bxc5 {[%clk 0:02:11]}  Qd5 {[%clk 0:01:33]} 17. a4 {[%clk 0:02:06]}  Bb7 {[%clk 0:01:30]} 18. axb5 {[%clk 0:02:05]}  axb5 {[%clk 0:01:31]} 19. Rb1 {[%clk 0:01:57]}  Qxc5 {[%clk 0:01:28]} 20. Qe2 {[%clk 0:01:39]}  Nge7 {[%clk 0:01:25]} 21. d3 {[%clk 0:01:35]}  c3 {[%clk 0:01:19]} 22. Bg5 {[%clk 0:01:35]}  Ng6 {[%clk 0:01:16]} 23. Bf6 {[%clk 0:01:36]}  Rg8 {[%clk 0:01:15]} 24. Ra1 {[%clk 0:01:14]}  Kd7 {[%clk 0:01:15]} 25. Rab1 {[%clk 0:01:09]}  Qd5 {[%clk 0:01:11]} 26. Qe4 {[%clk 0:00:57]}  b4 {[%clk 0:00:47]} 27. Ne2 {[%clk 0:00:45]}  Ra2 {[%clk 0:00:39]} 28. Ng3 {[%clk 0:00:33]}  Rxc2 {[%clk 0:00:31]} 29. Nxh5 {[%clk 0:00:31]}  Qxe4 {[%clk 0:00:31]} 30. Rxe4 {[%clk 0:00:32]}  Ra8 {[%clk 0:00:30]} 31. Bg5 {[%clk 0:00:24]}  Raa2 {[%clk 0:00:22]} 32. Nf6+ {[%clk 0:00:24]}  Kc8 {[%clk 0:00:22]} 33. Nxg4 {[%clk 0:00:24]}  Rcb2 {[%clk 0:00:15]} 34. Rbe1 {[%clk 0:00:24]}  b3 {[%clk 0:00:14]} 35. h4 {[%clk 0:00:24]}  Rxf2 {[%clk 0:00:11]} 36. Nxf2 {[%clk 0:00:22]}  Rxf2 {[%clk 0:00:12]} 37. h5 {[%clk 0:00:23]}  Nf8 {[%clk 0:00:11]} 38. Kg1 {[%clk 0:00:20]}  Ra2 {[%clk 0:00:09]} 39. h6 {[%clk 0:00:20]}  b2 {[%clk 0:00:08]} 40. R4e2 {[%clk 0:00:07]}  Ra1 {[%clk 0:00:08]} 41. Bf6 {[%clk 0:00:06]}  Rxe1 {[%clk 0:00:07]} 42. Rxe1 {[%clk 0:00:06]}  c2 {[%clk 0:00:08]} 43. Bg7 {[%clk 0:00:06]}  Nh7 {[%clk 0:00:08]} 44. Be2 {[%clk 0:00:05]}  c1=Q {[%clk 0:00:08]} 45. Rf1 {[%clk 0:00:05]}  b1=Q {[%clk 0:00:08]} 0-1

[Event "January 9 Early 2024"]
[Site "https://www.chess.com"]
[Date "2024.01.11"]
[Round "2"]
[White "Trost, Edvin"]
[Black "Lu, Shanglei"]
[Result "0-1"]
[Board "228"]
[TimeControl "180+1"]
[WhiteFideId "1729519"]
[BlackFideId "8603332"]
[WhiteElo "2611"]
[BlackElo "2943"]
[WhiteTeam "SWE"]
[BlackTeam "CHN"]
[WhiteClock "0:00:02"]
[BlackClock "0:00:29"]

1. e4 {[%clk 0:03:00]}  c5 {[%clk 0:02:59]} 2. Nf3 {[%clk 0:03:00]}  e6 {[%clk 0:03:00]} 3. Bd3 {[%clk 0:02:54]}  Nc6 {[%clk 0:02:59]} 4. O-O {[%clk 0:02:54]}  g6 {[%clk 0:02:59]} 5. c3 {[%clk 0:02:53]}  Bg7 {[%clk 0:03:00]} 6. Bc2 {[%clk 0:02:54]}  d5 {[%clk 0:02:59]} 7. exd5 {[%clk 0:02:49]}  Qxd5 {[%clk 0:02:58]} 8. Na3 {[%clk 0:02:48]}  Nge7 {[%clk 0:02:54]} 9. Nb5 {[%clk 0:02:44]}  Qd7 {[%clk 0:02:50]} 10. d4 {[%clk 0:02:25]}  a6 {[%clk 0:02:49]} 11. Na3 {[%clk 0:02:26]}  cxd4 {[%clk 0:02:50]} 12. Nc4 {[%clk 0:02:26]}  dxc3 {[%clk 0:02:45]} 13. Nd6+ {[%clk 0:02:03]}  Kf8 {[%clk 0:02:45]} 14. bxc3 {[%clk 0:02:03]}  Nd5 {[%clk 0:02:43]} 15. Ba3 {[%clk 0:02:03]}  Kg8 {[%clk 0:02:40]} 16. c4 {[%clk 0:02:02]}  Ndb4 {[%clk 0:02:35]} 17. Rb1 {[%clk 0:01:46]}  a5 {[%clk 0:02:26]} 18. c5 {[%clk 0:01:37]}  h6 {[%clk 0:02:24]} 19. Re1 {[%clk 0:01:34]}  Nxa2 {[%clk 0:01:48]} 20. Rb6 {[%clk 0:01:19]}  Nc3 {[%clk 0:01:47]} 21. Qd3 {[%clk 0:01:18]}  Nd5 {[%clk 0:01:47]} 22. Rbb1 {[%clk 0:01:14]}  Ncb4 {[%clk 0:01:42]} 23. Bxb4 {[%clk 0:01:09]}  Nxb4 {[%clk 0:01:34]} 24. Qb3 {[%clk 0:01:09]}  Kh7 {[%clk 0:01:34]} 25. Rbd1 {[%clk 0:01:07]}  Qe7 {[%clk 0:01:22]} 26. h4 {[%clk 0:01:04]}  Nxc2 {[%clk 0:01:15]} 27. Qxc2 {[%clk 0:01:02]}  Bd7 {[%clk 0:01:15]} 28. h5 {[%clk 0:00:56]}  Bc6 {[%clk 0:01:14]} 29. hxg6+ {[%clk 0:00:56]}  fxg6 {[%clk 0:01:15]} 30. Nd4 {[%clk 0:00:57]}  Bxd4 {[%clk 0:01:11]} 31. Rxd4 {[%clk 0:00:58]}  Rhf8 {[%clk 0:01:10]} 32. Re3 {[%clk 0:00:44]}  Rf6 {[%clk 0:01:06]} 33. Rd2 {[%clk 0:00:40]}  Raf8 {[%clk 0:01:02]} 34. Qc3 {[%clk 0:00:38]}  a4 {[%clk 0:01:02]} 35. Rh3 {[%clk 0:00:32]}  Qg7 {[%clk 0:00:59]} 36. Qe3 {[%clk 0:00:32]}  Rf4 {[%clk 0:00:56]} 37. Qxe6 {[%clk 0:00:29]}  Qa1+ {[%clk 0:00:51]} 38. Kh2 {[%clk 0:00:28]}  Rxf2 {[%clk 0:00:50]} 39. Qe7+ {[%clk 0:00:16]}  Kg8 {[%clk 0:00:43]} 40. Rxf2 {[%clk 0:00:12]}  Rxf2 {[%clk 0:00:43]} 41. Qe6+ {[%clk 0:00:10]}  Kf8 {[%clk 0:00:42]} 42. Qc8+ {[%clk 0:00:07]}  Kg7 {[%clk 0:00:42]} 43. Qc7+ {[%clk 0:00:05]}  Kg8 {[%clk 0:00:42]} 44. Qd8+ {[%clk 0:00:04]}  Rf8 {[%clk 0:00:41]} 45. Qe7 {[%clk 0:00:04]}  Qg7 {[%clk 0:00:41]} 46. Qe6+ {[%clk 0:00:04]}  Kh8 {[%clk 0:00:39]} 47. Rg3 {[%clk 0:00:05]}  Qf6 {[%clk 0:00:32]} 48. Qe3 {[%clk 0:00:05]}  Kg7 {[%clk 0:00:29]} 49. Kg1 {[%clk 0:00:02]}  g5 {[%clk 0:00:29]} 50. Rh3 {[%clk 0:00:01]}  Qf1+ {[%clk 0:00:29]} 51. Kh2 {[%clk 0:00:02]}  Qxg2# {[%clk 0:00:29]} 0-1

[Event "January 9 Early 2024"]
[Site "https://www.chess.com"]
[Date "2024.01.11"]
[Round "2"]
[White "Shkapenko, Pavel"]
[Black "Chernomordik, Pavel"]
[Result "1-0"]
[Board "230"]
[TimeControl "180+1"]
[WhiteFideId "4151933"]
[BlackFideId "2804530"]
[WhiteElo "2759"]
[BlackElo "2433"]
[WhiteTeam "FID"]
[BlackTeam "ISR"]
[WhiteClock "0:00:12"]
[BlackClock "0:00:01"]

1. e4 {[%clk 0:03:00]}  g6 {[%clk 0:02:59]} 2. d4 {[%clk 0:03:00]}  Bg7 {[%clk 0:02:59]} 3. Nf3 {[%clk 0:03:01]}  d6 {[%clk 0:02:59]} 4. Nc3 {[%clk 0:03:00]}  a6 {[%clk 0:02:58]} 5. Bc4 {[%clk 0:02:59]}  e6 {[%clk 0:02:58]} 6. a4 {[%clk 0:02:58]}  b6 {[%clk 0:02:58]} 7. Be3 {[%clk 0:02:48]}  Bb7 {[%clk 0:02:57]} 8. Qd2 {[%clk 0:02:48]}  Nd7 {[%clk 0:02:57]} 9. Ba2 {[%clk 0:02:47]}  h6 {[%clk 0:02:53]} 10. h3 {[%clk 0:02:25]}  Ngf6 {[%clk 0:02:45]} 11. e5 {[%clk 0:02:25]}  Ne4 {[%clk 0:02:44]} 12. Nxe4 {[%clk 0:02:14]}  Bxe4 {[%clk 0:02:43]} 13. exd6 {[%clk 0:02:15]}  cxd6 {[%clk 0:02:38]} 14. Qe2 {[%clk 0:02:14]}  Nf6 {[%clk 0:02:26]} 15. O-O {[%clk 0:02:14]}  O-O {[%clk 0:02:24]} 16. c4 {[%clk 0:02:13]}  Bb7 {[%clk 0:02:14]} 17. Rfd1 {[%clk 0:02:08]}  Qc7 {[%clk 0:02:13]} 18. Rac1 {[%clk 0:02:08]}  Qc6 {[%clk 0:02:03]} 19. d5 {[%clk 0:02:08]}  exd5 {[%clk 0:02:02]} 20. cxd5 {[%clk 0:01:46]}  Qxa4 {[%clk 0:02:01]} 21. Bc4 {[%clk 0:01:45]}  Rfe8 {[%clk 0:01:52]} 22. Qd3 {[%clk 0:01:28]}  b5 {[%clk 0:01:40]} 23. Bb3 {[%clk 0:01:29]}  Qa5 {[%clk 0:01:39]} 24. Nd4 {[%clk 0:01:29]}  Nxd5 {[%clk 0:01:28]} 25. Nc6 {[%clk 0:01:16]}  Bxc6 {[%clk 0:01:26]} 26. Rxc6 {[%clk 0:01:17]}  Nxe3 {[%clk 0:01:22]} 27. fxe3 {[%clk 0:01:13]}  d5 {[%clk 0:01:09]} 28. Bxd5 {[%clk 0:01:07]}  Kh8 {[%clk 0:00:41]} 29. Bxf7 {[%clk 0:00:50]}  Red8 {[%clk 0:00:34]} 30. Rd6 {[%clk 0:00:46]}  Rxd6 {[%clk 0:00:22]} 31. Qxd6 {[%clk 0:00:47]}  g5 {[%clk 0:00:19]} 32. b4 {[%clk 0:00:41]}  Qa4 {[%clk 0:00:17]} 33. Bg6 {[%clk 0:00:37]}  Rf8 {[%clk 0:00:16]} 34. Bb1 {[%clk 0:00:33]}  Qb3 {[%clk 0:00:13]} 35. Kh1 {[%clk 0:00:30]}  Rf6 {[%clk 0:00:09]} 36. Qd2 {[%clk 0:00:22]}  Qc4 {[%clk 0:00:09]} 37. Bd3 {[%clk 0:00:20]}  Qd5 {[%clk 0:00:08]} 38. Qc2 {[%clk 0:00:18]}  Qe5 {[%clk 0:00:04]} 39. Be4 {[%clk 0:00:15]}  Rf8 {[%clk 0:00:02]} 40. Qc6 {[%clk 0:00:13]}  Re8 {[%clk 0:00:01]} 41. Bb1 {[%clk 0:00:12]} 1-0